Cogmind - Beta 17.1 @@@ ROGUE MODE // 2026.09.18 @ 11:47:57 Player: 4R-ZE3 Result: Destroyed by N3-T3M(R) with Subdweller Laser Performance ------------- Evolutions (0) 0 Regions Visited (2) 400 Robots Destroyed (17) 85 Value Destroyed (350) 350 Prototype IDs (14) 280 Alien Tech Used (0) 0 Bonus (0) 0 TOTAL SCORE: 1115 Bonus ------- None Cogmind --------- Core Integrity 0/250 Matter 294/300 Energy 173/200 System Corruption 0% Temperature Cool (6) Movement Treading (320) Ox2 Location -10/Subcaves Parts ------- > --- POWER (1) -------- Subdweller Power Source > --- PROPULSION (2) --- Light Treads Compact Wheel > --- UTILITY (2) ------ High-capacity Storage Unit Makeshift Light Armor Plating > --- WEAPON (2) ------- Subdweller Laser Subdweller Machine Gun > --- INVENTORY (20) --- Subdweller Power Source Aluminum Leg Aluminum Leg Compact Wheel Subdweller Monowheel Subdweller Monowheel Subdweller Monowheel Subdweller Monowheel Maxwheels Signal Interpreter Makeshift Kinetic Plating Riot Gun Riot Gun Small Laser Small Laser Subdweller Beam Cannon Assault Rifle Peak State ------------ > --- POWER ------------ Subdweller Power Source > --- PROPULSION ------- Light Treads Compact Wheel > --- UTILITY ---------- High-capacity Storage Unit Makeshift Light Armor Plating > --- WEAPON ----------- Subdweller Laser Subdweller Machine Gun > --- INVENTORY -------- Subdweller Power Source Aluminum Leg Aluminum Leg Compact Wheel Subdweller Monowheel Subdweller Monowheel Subdweller Monowheel Subdweller Monowheel Maxwheels Signal Interpreter Makeshift Kinetic Plating Riot Gun Riot Gun Small Laser Small Laser Subdweller Beam Cannon Assault Rifle [Rating: 19] Favorites ----------- Power Subdweller Power Source Engine Subdweller Power Source Propulsion Light Treads Treads Light Treads Leg Aluminum Leg Wheel Compact Wheel Utility High-capacity Storage Unit Storage High-capacity Storage Unit Protection Makeshift Light Armor Plating Weapon Small Laser Energy Gun Small Laser Ballistic Gun Subdweller Machine Gun Build | -11 -10 -10 ------- Run | Yrd Mat Sub Slots Evolved . | . . . Power . | . . . Propulsion . | . . . Utility . | . . . Weapon . | . . . Parts Attached 11 | . 5 6 Power 2 | . 1 1 Engine 2 | . 1 1 Core . | . . . Reactor . | . . . Propulsion 3 | . 2 1 Treads 2 | . 2 . Leg . | . . . Wheel 1 | . . 1 Hover . | . . . Flight . | . . . Utility 2 | . 1 1 Device . | . . . Storage 1 | . 1 . Processor . | . . . Hackware . | . . . Protection 1 | . . 1 Artifact . | . . . Weapon 4 | . 1 3 Energy Gun 3 | . 1 2 Energy Cannon . | . . . Ballistic Gun 1 | . . 1 Ballistic Cannon . | . . . Launcher . | . . . Special Weapon . | . . . Impact Weapon . | . . . Slashing Weapon . | . . . Piercing Weapon . | . . . Special Melee Weapon . | . . . Unidentified Prototypes . | . . . Parts Lost 5 | . 2 3 Power 2 | . 1 1 Propulsion 1 | . . 1 Utility . | . . . Weapon 2 | . 1 1 Highest Loss Streak 3 | . 2 3 To Critical Strikes . | . . . Average Backups 9 | . 6 10 Power . | . . . Propulsion 5 | . 4 6 Utility 1 | . . 1 Weapon 2 | . 1 3 Tool/Special . | . . . Unused Backups 14 | . . 14 Power . | . . . Propulsion 7 | . . 7 Utility 3 | . . 3 Weapon 4 | . . 4 Tool/Special . | . . . Average Slot Usage (%) 92 | . 84 96 Engine 13 | . 13 13 Treads 19 | . 27 14 Wheel 8 | . . 13 Storage 14 | . 14 14 Protection 7 | . . 11 Energy Gun 20 | . 27 16 Ballistic Gun 7 | . . 11 Peak Build Rating 19 | . 6 19 Average Rating 10 | . 5 13 On Entrance 6 | 6 6 6 Avg Prop Armor Cover (%) 12 | . . 12 Naked Turns . | . . . Heaviest Build 57 | 11 47 57 Greatest Support 40 | 20 40 40 Greatest Overweight (x) 3 | . 1 3 Average Overweight (x) 2 | . . 2 Largest Inventory Capacity 20 | . 20 20 Average Capacity 17 | . 14 20 Most Carried 20 | . 7 20 Average Carried 9 | . 6 11 Final Capacity 20 | 8 20 20 Final Carried 20 | 6 7 20 Class Distribution -------------------- 100% | Mutant Dominant Class ---------------- Mutant | -10/Materials Mutant | -10/Subcaves Resources | -11 -10 -10 ----------- Run | Yrd Mat Sub Matter Collected 350 | 180 70 100 Remotely . | . . . Salvage Created 469 | . 314 155 Parts 29 | . 19 10 Haulers Intercepted . | . . . Recyclers Shooed . | . . . Parts Field Recycled . | . . . Retrieved Matter . | . . . Parts Self-Destructed 7 | . . 7 Prevented . | . . . Parts Restored . | . . . Kills | -11 -10 -10 ------- Run | Yrd Mat Sub Combat Hostiles Destroyed 17 | . 11 6 Guns 17 | . 11 6 Classes Destroyed 3 | . 2 1 Swarmer 10 | . 6 4 Grunt 5 | . 5 . Subdweller 2 | . . 2 Best Kill Streak 3 | . 3 2 Combat Bots Only 3 | . 3 2 Max Kills in Single Turn 1 | . 1 1 Gunslinging . | . . . Exploded . | . . . Melee . | . . . Uniques/NPCs Destroyed . | . . . Combat | -11 -10 -10 -------- Run | Yrd Mat Sub Hostile Shots Fired 96 | . 58 38 Missed 21 | . 11 10 Hits 75 | . 47 28 Projectile 75 | . 47 28 Critical Strikes 1 | . 1 . Damage Taken 993 | . 470 523 Core 260 | . 117 143 Absorbed by Shields . | . . . Core Remaining (%) 100 | 100 . . Volleys Fired 70 | . 37 33 Largest 2 | . 2 2 Hottest 90 | . 80 90 Shots Fired 124 | . 73 51 Gun 124 | . 73 51 Cannon . | . . . Launcher . | . . . Special . | . . . Kinetic 23 | . . 23 Thermal 72 | . 44 28 Explosive . | . . . Electromagnetic 29 | . 29 . Robot Hit Streak 14 | . 14 13 Robot Miss Streak 4 | . 4 3 Penetration Max . | . . . Secondary Targets 2 | . 1 1 Max Gunslinging Chain 1 | . 1 1 Shots Hit Robots 71 | . 40 31 Core Hits 27 | . 16 11 Critical Kills . | . . . Critical Parts Destroyed . | . . . Critical Strikes 1 | . . 1 Destroy 1 | . . 1 Melee Attacks . | . . . Impact . | . . . Slashing . | . . . Piercing . | . . . Sneak Attacks . | . . . Combat Hostiles . | . . . Follow-up Attacks . | . . . Damage Inflicted 940 | . 518 422 Guns 940 | . 518 422 Cannons . | . . . Explosions . | . . . Melee . | . . . Ramming . | . . . Kinetic 142 | . . 142 Thermal 578 | . 298 280 Explosive . | . . . Electromagnetic 220 | . 220 . Impact . | . . . Slashing . | . . . Piercing . | . . . Highest Corruption . | . . . Average Corruption . | . . . Corruption Purged . | . . . Corruption Blocked . | . . . Overload Shots . | . . . Overflow Damage . | . . . Projectiles . | . . . Explosions . | . . . Melee . | . . . Knockbacks . | . . . Impact . | . . . Kinetic . | . . . Secondary . | . . . Self-Inflicted Damage . | . . . Shots . | . . . Rammed . | . . . Targets Rammed . | . . . Kicked . | . . . Crushed . | . . . Highest Temperature 228 | . 228 . Average Temperature 85 | . 85 . Received Heat Transfer 210 | . 186 24 Siege Activations . | . . . Martial Activations . | . . . Shielding Activations . | . . . Robots Disrupted . | . . . Combat Hostiles . | . . . Robots Corrupted . | . . . Combat Hostiles . | . . . Parts Fried 1 | . 1 . Impact Corruptions . | . . . Robots Melted . | . . . Combat Hostiles . | . . . Parts Melted 2 | . 1 1 Heat Transferred 1200 | . 625 575 Parts Sabotaged . | . . . Parts Stolen . | . . . Parts Stripped . | . . . Power Chain Reactions . | . . . Alert | -11 -10 -10 ------- Run | Yrd Mat Sub Maximum Alert Level . | . . . Low Security (%) 100 | . 100 . Level 1 . | . . . Level 2 . | . . . Level 3 . | . . . Level 4 . | . . . Level 5 . | . . . High Security . | . . . Max Security . | . . . Peak Influence 170 | . 170 . Initial . | . . . Average 95 | . 95 . Influence Increases 533 | . 393 140 Destroy 0b10 Robot/C 300 | . 220 80 Destroy Leader 50 | . 50 . Successful Hack 18 | . 18 . Select Force Hacks 60 | . 60 . Lose Combat Pursuer 105 | . 45 60 Influence Decreases 529 | . 298 231 Entered New Map 47 | . . 47 Time Decay 442 | . 278 164 Lost Part 40 | . 20 20 Squads Dispatched 3 | . 3 . Investigation 2 | . 2 . Extermination . | . . . Reinforcement 1 | . 1 . Assault . | . . . Garrison . | . . . Intercept . | . . . Searches Triggered . | . . . Construction Impeded . | . . . Haulers Reinforced . | . . . Active Scanning Responses . | . . . Cargo Convoy Interrupts . | . . . Stealth | -11 -10 -10 --------- Run | Yrd Mat Sub Distress Signals 2 | . 2 . Communications Jammed . | . . . Distress Signals . | . . . Times Spotted 30 | . 21 9 Peak Tracking Total 4 | . 3 4 Tactical Retreats 4 | . 2 2 Traps | -11 -10 -10 ------- Run | Yrd Mat Sub Traps Triggered 1 | . . 1 Indirectly . | . . . Trap Hack Attempts . | . . . Triggered . | . . . Disarmed . | . . . Reprogrammed . | . . . Reused . | . . . Traps Extracted . | . . . Installed . | . . . Triggered . | . . . Machines | -11 -10 -10 ---------- Run | Yrd Mat Sub Machines Disabled 1 | . . 1 Max in Single Turn 1 | . . 1 Machines Repaired . | . . . Machines Dismantled . | . . . Machines Sabotaged . | . . . Overloaded Fab Kills . | . . . Hacking | -11 -10 -10 --------- Run | Yrd Mat Sub Machines Accessed 7 | . 6 1 Terminals 4 | . 4 . Fabricators . | . . . Repair Stations . | . . . Recycling Units 2 | . 2 . Scanalyzers . | . . . Garrison Access . | . . . Total Hacks 15 | . 14 1 Successful 7 | . 6 1 Failed 8 | . 8 . Catastrophic 1 | . 1 . Database Lockouts . | . . . Manual 14 | . 14 . Terminals 12 | . 12 . Fabricators . | . . . Repair Stations . | . . . Recycling Units 2 | . 2 . Scanalyzers . | . . . Garrison Access . | . . . Terminal Hacks 4 | . 3 1 Robot Analysis 2 | . 2 . Recycling Unit Index 1 | . 1 . Proto ID Catalog 1 | . . 1 Fabricator Hacks . | . . . Repair Station Hacks . | . . . Recycling Unit Hacks . | . . . Scanalyzer . | . . . Garrison Access Hacks . | . . . Unauthorized Hacks 3 | . 3 . Terminals 1 | . 1 . Botnet 1 | . 1 . Fabricators . | . . . Repair Stations . | . . . Recycling Units 2 | . 2 . Tunnel 2 | . 2 . Scanalyzers . | . . . Garrison Access . | . . . Data Cores Recovered . | . . . Used . | . . . Hacking Detections 4 | . 4 . Full Trace Events . | . . . Feedback Events . | . . . Feedback Blocked . | . . . Robot Schematics Acquired . | . . . Robots Built . | . . . Authchips . | . . . Time . | . . . Total Robot Build Rating . | . . . Part Schematics Acquired . | . . . Parts Built . | . . . Authchips . | . . . Time . | . . . Total Part Build Rating . | . . . Part Studies Acquired . | . . . Parts Repaired . | . . . Time . | . . . Parts Recycled . | . . . Recycled Matter . | . . . Retrieved Matter . | . . . Retrieved Components . | . . . Parts Scanalyzed . | . . . Part Schematics Acquired . | . . . Parts Damaged . | . . . Bothacking | -11 -10 -10 ------------ Run | Yrd Mat Sub Used RIF Installer . | . . . Robots Hacked . | . . . Non-combat . | . . . Combat . | . . . Robot Hacks Applied . | . . . Relay Couplers Released . | . . . Fabnet Peak Effective % . | . . . Robots Rewired . | . . . Allies Hacked . | . . . Hacks Repelled . | . . . Allies | -11 -10 -10 -------- Run | Yrd Mat Sub Total Allies . | . . . Largest Group . | . . . Highest-Rated Group . | . . . Highest-Rated Ally . | . . . Total Orders . | . . . Ally Attacks . | . . . Total Damage . | . . . Kills . | . . . Allies Corrupted . | . . . Allies Melted . | . . . Intel | -11 -10 -10 ------- Run | Yrd Mat Sub Active Infowar (turns) . | . . . Robot Analysis Total 2 | . 2 . Derelict Logs Recovered 1 | . . 1 Drone Launches . | . . . Drone Recoveries . | . . . Exploration | -11 -10 -10 ------------- Run | Yrd Mat Sub Turns Passed 1941 | . 690 1251 Spaces Moved 1024 | 1 238 785 Core . | . . . Treads 248 | . 238 10 Legs 1 | 1 . . Wheels 775 | . . 775 Hover . | . . . Flight . | . . . Fastest Speed 120 | 120 160 130 Average Speed 155 | 120 191 144 Slowest Speed 240 | 120 240 240 Overloaded Moves . | . . . Propulsion Burnouts . | . . . Robots Hopped . | . . . Potential Cave-ins . | . . . Cave-ins Triggered . | . . . Exploration Rate (%) 34 | 2 48 52 Regions Visited 2 Branch Regions 1 Pre-discovered Areas 3 | . 2 1 Known Exits Taken . | . . . Unknown Exits Taken 2 | 1 1 . Scrap Searched 7 | . . 7 Spaces Dug . | . . . Terrain Destroyed . | . . . Melee . | . . . Projectile . | . . . AOE . | . . . Terrain Rammed . | . . . Walls Destroyed . | . . . Machines Disabled . | . . . Actions | -11 -10 -10 --------- Run | Yrd Mat Sub Total 1253 | . 400 853 Wait 132 | . 117 15 Move 1022 | . 237 785 Hop . | . . . Pick Up 16 | . 3 13 Fast Attach 3 | . 1 2 Attach 4 | . 2 2 Detach . | . . . Swap 4 | . 2 2 Drop 2 | . 1 1 Fire 70 | . 37 33 Melee . | . . . Ram . | . . . Kick . | . . . Crush . | . . . Escape Stasis . | . . . Rewire . | . . . Trap . | . . . Miscellaneous . | . . . Route ------- -11/Scrapyard -10/Materials (discovered 3 exits: [*Mat] / [*Min] / *Sub) -10/Subcaves History --------- Turn | Location | Event 1 | -11/Scrapyard | Discovered new exit (range 0) 1 | -11/Scrapyard | Entered Materials 244 | -10/Materials | Discovered new exit (range 16) 309 | -10/Materials | Build established: Mutant 434 | -10/Materials | Discovered new exit (range 16) 666 | -10/Materials | Discovered new exit (range 8) 691 | -10/Materials | Entered Subcaves 709 | -10/Subcaves | Core integrity fell below 50% 746 | -10/Subcaves | Core integrity fell below 20% 784 | -10/Subcaves | Lost 3 parts (1p1n1w) 843 | -10/Subcaves | Learned location of Mines (-8) 1280 | -10/Subcaves | Shifting Twisted Machinery released Flamer 1308 | -10/Subcaves | Shifting Twisted Machinery released Sub. Power Source 1577 | -10/Subcaves | Visited 4L-MR0's lab 1594 | -10/Subcaves | Found Maxwheels 1942 | -10/Subcaves | Destroyed by N3-T3M(R) with Subdweller Laser Last Messages --------------- 01614_ Acquired 2 matter. 01630_ Searching scrap... 01630_ Found Sub. Monowheel. 01630_ Found Scrap Shield. 01630_ Found 60 Matter. 01633_ Acquired Sub. Monowheel. 01706_ S-10 Pest destroyed. 01710_ Destroyed Flight Unit. 01712_ S-10 Pest destroyed. 01718_ Acquired 16 matter. 01721_ Lgt. Assault Rifle fries itself beyond repair. 01722_ Flight Unit fries itself beyond repair. 01736_ Subatomizers dissect the Wheel. 01753_ Acquired Sub. Beam Cannon. 01754_ Acquired 2 matter. 01760_ Subatomizers dissect the Wheel, destroying it. 01908_ Acquired Sub. Power Source. 01936_ N3-T3M(R) suffers critical hit (Destroy). Map ----- +----------------------------------------------------+ | ???????????????????# ???????????????????# | | ???????????????????# #????????????######## | | ???????????????????# ##???????????# | | ???????????????????# ##??????????# | | ??????????????????## #????###??### | | ??????????????????# ??#### #### # # ### | | ???????????????????# #### #? | | ???????????????????# # #? | | ????????????????????# #### | | ????????????????????# ## | | ????????????????????## # | | ?????????????????????## ## | | ??????????????????##### ### # | | ?????????????????## #?##### | | ???????????????### #### #?????? | | ??????????????## ###??#### ##?????? | | ??????????????# ##???????## #??????? | | ??????????????# ##?????????## ##??????? | | ??????????????# ##???????????# #???????? | | ??????????????# ##????????????# #???????? | | ??????????????## ##??????##????? #???????? | | ???????????????## ##????? $#????? #???????? | | ????????????????## ##???# ####??? #???????? | | ?????????????????# ##? R < ###### % ???????? | | ?????????????????## ## #??# ????????? | | ??????????????????## @ #????????????????????? | | ???????????????????# #????????????????????? | | ????????????????? %[#????????????????????? | | ???????????????# ???????????????????? | | ???????????????# ?????????????????? | | ???????????????# ???????????????? | | ??????????????# ## ?????????????? | | ??????????????##### #?## ????????????? | | ??????????????????##????## #????????????? | | ?????????????????????????? ????????????? | | ??????????????????????????# # ????????????? | | ??????????????????????????? ## ????????????? | | ??????????????????????????? #? ??????????????? | | ???????????????????????????? #????????????????? | | ???????????????????????????????????????????????? | | ???????????????????????????????????????????????? | | ???????????????????????????????????????????????? | | ???????????????????????????????????????????????? | | ???????????????????????????????????????????????? | | ???????????????????????????????????????????????? | | ???????????????????????????????????????????????? | | ???????????????????????????????????????????????? | | ???????????????????????????????????????????????? | | ???????????????????????????????????????????????? | | ???????????????????????????????????????????????? | +----------------------------------------------------+ Best States ------------- Heat Dissipation 25 Energy Generation 10 Energy Capacity 250 Matter Stores 300 Matter Capacity 300 Sight Range 16 Terrain Scan Density 10 Armor Coverage 100 Evasion (%) 40 Recoil Reduction 2 Item Schematics ----------------- None Robot Schematics ------------------ None Fabricated ------------ Nothing Repaired ---------- Nothing Studied --------- None Alien Tech Used ----------------- None Achievements -------------- None Challenges ------------ None Game ------ Seed ElectronInterceptConstruct Manual? 0 Play Time 00:11:09 Cumulative 425.0 hours Start 2026.09.18 @ 11:40:39 End 2026.09.18 @ 11:47:57 Sessions 1 Manual Loads 0 Difficulty Rogue Special Mode None Game No. 374 Rogue 320 Adventurer 54 Explorer 0 Win Type - Total 25 Types 15/2/1/1/1/1/1/1/1/1 Lore% 83 Gallery% 72 Achievement% 72 Wizard Run 0 Options --------- Layout 1 ASCII 0 Keyboard 0 Movement Mouse Keybinds 1 Fullscreen 2 Font 32/Tamsyn Map View 50x35 Zoom Use 0% Tactical HUD 1 Map Filters NONE Filters NONE Steam 1 RUN: 55898a1a-3f0f-4b19-85cb-37a5154d0caf